bitfinex/quotes_BTCUSD_20250205
["timestamp","ask_amount","ask_price","bid_price","bid_amount"]
[1738714184181,0.10772,98028.0,98011.0,0.86698702]
[1738714184341,0.1225399,98012.0,98011.0,0.76460196]
[1738714184765,0.1225399,98012.0,98002.0,0.17177998]
[1738714184766,0.122444,98004.0,98002.0,0.17177998]
[1738714185105,0.122444,98004.0,98001.0,0.00014038]
[1738714185106,0.0001069,98012.0,98011.0,0.01012541]
[1738714188816,0.0001069,98012.0,98011.0,0.99954743]
[1738714189039,0.0001069,98012.0,98011.0,1.04554743]
[1738714190045,0.0001069,98012.0,98011.0,1.19554743]
[1738714190263,0.0001069,98012.0,98011.0,1.31064743]
[1738714191189,0.0001068,98034.0,98033.0,1.27981943]
[1738714191931,0.00057491,98034.0,98033.0,1.27981943]
[1738714192531,0.00057491,98034.0,98033.0,1.29039039]
[1738714193754,0.00057491,98034.0,98033.0,1.29026498]
[1738714193962,0.00057491,98034.0,98033.0,1.29039039]
[1738714194497,0.00057491,98034.0,98033.0,1.30039039]
[1738714194849,0.00057491,98034.0,98033.0,1.29026498]
[1738714195252,0.00057491,98034.0,98033.0,1.18771943]
[1738714195600,0.00057491,98034.0,98033.0,0.99951943]
[1738714195798,0.00057491,98034.0,98033.0,0.99939402]
[1738714196177,0.00057491,98034.0,98033.0,0.87711243]
[1738714197862,0.00057491,98034.0,98033.0,0.95661243]
[1738714198690,0.00057491,98034.0,98033.0,0.95648702]
[1738714198895,0.00057491,98034.0,98033.0,0.95661243]
[1738714199091,0.00057491,98034.0,98033.0,0.96681254]
[1738714199317,0.00057491,98034.0,98033.0,0.88743795]
[1738714199493,0.00057491,98034.0,98033.0,0.87743795]
[1738714199696,0.00057491,98034.0,98033.0,0.87711243]
[1738714199878,0.00057491,98034.0,98033.0,0.86698702]
[1738714200080,0.00057491,98034.0,98033.0,0.87698702]
[1738714200280,0.00057491,98034.0,98033.0,0.87711243]
[1738714200724,0.00057491,98034.0,98033.0,0.76460196]
[1738714201100,0.01949923,98034.0,98033.0,0.76472737]
[1738714201390,0.01949923,98034.0,98033.0,0.76460196]
[1738714201838,0.01949923,98034.0,98033.0,0.77472737]
[1738714202028,0.01949923,98034.0,98033.0,0.87711243]
[1738714203740,0.01949923,98034.0,98033.0,0.87698702]
[1738714203984,0.01949923,98034.0,98033.0,0.87711243]
[1738714204209,0.00057491,98034.0,98033.0,0.87711243]
[1738714205129,0.00057491,98034.0,98033.0,0.87698702]
[1738714205355,0.00057491,98034.0,98033.0,0.87711243]
[1738714205581,0.00057491,98034.0,98033.0,0.86711243]
[1738714205807,0.05958279,98034.0,98033.0,0.77460196]
[1738714206024,0.122417,98025.0,98024.0,0.17177998]
[1738714206254,0.16321,98033.0,98031.0,0.01]
[1738714206483,0.122407,98033.0,98031.0,0.01]
[1738714206696,0.122407,98033.0,98021.0,0.00012541]
[1738714206697,0.16321,98033.0,98021.0,0.00012541]
[1738714206908,0.122421,98022.0,98021.0,0.01]
[1738714207363,0.16321,98033.0,98017.0,0.32704817]
[1738714207563,0.122425,98019.0,98018.0,0.01]
[1738714208035,0.122425,98019.0,98015.0,0.17177998]
[1738714208302,0.122428,98016.0,98015.0,0.18177998]
[1738714208535,0.12242,98024.0,98022.0,0.00012541]
[1738714208805,0.023,98039.0,98014.0,0.17177998]
[1738714209009,0.12243,98015.0,98014.0,0.17177998]
[1738714209251,0.122432,98013.0,98012.0,0.00022428]
[1738714210208,0.17187254,98013.0,98012.0,0.00022428]
[1738714211515,0.04944054,98013.0,98012.0,0.00022428]
[1738714211746,0.04944054,98013.0,98012.0,0.01034969]
[1738714213972,0.01901559,98013.0,98012.0,0.01034969]
[1738714214147,0.01901559,98013.0,98012.0,0.00022428]
[1738714214723,0.07795726,98013.0,98012.0,0.00022428]
[1738714214935,0.10838221,98013.0,98012.0,0.00022428]
[1738714215320,0.04944054,98013.0,98012.0,0.00022428]
[1738714216894,0.04944054,98013.0,98012.0,0.01022428]
[1738714217090,0.04944054,98013.0,98012.0,0.01034969]
[1738714217288,0.04944054,98013.0,98012.0,0.11260934]
[1738714217517,0.04944054,98013.0,98012.0,0.01022428]
[1738714218076,0.08022559,98013.0,98012.0,0.01022428]
[1738714220279,0.01901559,98013.0,98012.0,0.11273475]
[1738714220813,0.183636,98018.0,98017.0,0.00012541]
[1738714220999,0.183636,98018.0,98017.0,0.01012541]
[1738714221205,0.08987459,98013.0,98012.0,0.10260934]
[1738714221834,0.15108459,98013.0,98012.0,0.00022428]
[1738714222006,0.21108405,98013.0,98012.0,0.00022428]
[1738714222512,0.23408405,98013.0,98012.0,0.00022428]
[1738714223096,0.65999172,98013.0,98012.0,0.00022428]
[1738714224265,0.2892972,98013.0,98012.0,0.00022428]
[1738714224444,0.1392972,98013.0,98012.0,0.00022428]
[1738714224659,0.1402972,98013.0,98012.0,0.00022428]
[1738714225153,0.1442972,98013.0,98012.0,0.00022428]
[1738714225324,0.1432972,98013.0,98012.0,0.00022428]
[1738714225523,0.1392972,98013.0,98012.0,0.00022428]
[1738714225705,0.10887225,98013.0,98012.0,0.00022428]
[1738714226307,0.10887225,98013.0,98012.0,0.10260934]
[1738714226889,0.08987459,98013.0,98012.0,0.10260934]
[1738714227129,0.08987459,98013.0,98012.0,0.54016313]
[1738714227757,0.08987459,98013.0,98012.0,0.43777807]
[1738714227966,0.09886205,98013.0,98012.0,0.43777807]
[1738714228922,0.08998139,98013.0,98012.0,0.43777807]
[1738714229126,0.13941246,98013.0,98012.0,0.43777807]
[1738714230827,0.10898751,98013.0,98012.0,0.43777807]
[1738714231869,0.13941246,98013.0,98012.0,0.43777807]
[1738714232311,0.13941246,98013.0,98012.0,0.44467487]
[1738714233065,0.13941246,98013.0,98012.0,0.00712108]
[1738714233320,0.13941246,98013.0,98012.0,0.00022428]
[1738714233767,0.19824431,98013.0,98012.0,0.00022428]
[1738714234348,0.25945431,98013.0,98012.0,0.00022428]
[1738714235727,0.20062246,98013.0,98012.0,0.00022428]
[1738714237167,0.13941246,98013.0,98012.0,0.00022428]
[1738714238539,0.23141951,98013.0,98012.0,0.00022428]
[1738714238764,0.10898751,98013.0,98012.0,0.00022428]
[1738714238966,0.10898751,98013.0,98012.0,0.12265728]
[1738714239320,0.10898751,98013.0,98012.0,0.23068823]
[1738714239446,0.10898751,98013.0,98012.0,1.04139019]
[1738714240100,0.08998139,98013.0,98012.0,1.19139019]
[1738714240965,0.08998139,98013.0,98012.0,1.27823048]
[1738714242558,0.03998139,98013.0,98012.0,1.31123048]
[1738714243523,0.03998139,98013.0,98012.0,1.32123048]
[1738714243724,0.0001068,98017.0,98016.0,0.384028]
[1738714243948,0.0001068,98017.0,98016.0,0.48641306]
[1738714244106,0.0001068,98017.0,98016.0,0.49333976]
[1738714244867,0.0001068,98017.0,98016.0,0.49564866]
[1738714245071,8e-07,98017.0,98016.0,1.26025062]
[1738714245289,0.0001068,98055.0,98041.0,0.01]
[1738714245456,0.0001068,98055.0,98043.0,0.45338006]
[1738714245655,0.00016416,98044.0,98043.0,0.45338006]
[1738714246057,0.00016416,98044.0,98043.0,0.46030676]
[1738714247479,0.00016416,98044.0,98043.0,0.46254231]
[1738714247686,0.00016416,98044.0,98043.0,0.23394231]
[1738714249303,0.00016416,98044.0,98043.0,0.11154731]
[1738714249527,0.00016416,98044.0,98043.0,0.87614927]
[1738714249729,0.00016416,98044.0,98043.0,0.33621042]
[1738714251009,0.00016416,98044.0,98043.0,0.43859548]
[1738714252278,0.00016416,98044.0,98043.0,0.33621042]
[1738714253060,0.00016416,98044.0,98043.0,0.00916225]
[1738714253268,0.00016416,98044.0,98034.0,0.17200426]
[1738714253440,0.122395,98043.0,98034.0,0.17200426]
[1738714253680,0.00016416,98044.0,98037.0,0.122402]
[1738714253857,0.00016416,98044.0,98039.0,0.1224]
[1738714254077,0.00016416,98044.0,98040.0,0.10238506]
[1738714254311,0.00016416,98044.0,98041.0,0.122397]
[1738714254518,0.00016416,98044.0,98042.0,0.10238506]
[1738714255108,0.00016416,98044.0,98034.0,0.17200426]
[1738714255316,0.00016416,98044.0,98035.0,0.10238506]
[1738714255695,0.00016416,98044.0,98036.0,0.163205]
[1738714255853,0.00016416,98044.0,98037.0,0.10238506]
[1738714256059,0.00016416,98044.0,98042.0,0.122395]
[1738714256264,0.00016416,98044.0,98043.0,0.54116261]
[1738714256452,0.00016416,98044.0,98043.0,0.76713885]
[1738714257665,0.00016416,98044.0,98043.0,1.12718702]
[1738714259200,0.0001068,98055.0,98054.0,0.360081]
[1738714259402,0.0001069,98101.0,98054.0,0.360081]
[1738714259403,0.0001069,98101.0,98061.0,0.350072]
[1738714259605,8e-07,98062.0,98061.0,1.29815902]
[1738714260245,8e-07,98062.0,98061.0,1.28815902]
[1738714260450,8e-07,98062.0,98061.0,1.29815902]
[1738714260614,8e-07,98062.0,98061.0,1.30847126]
[1738714261403,8e-07,98062.0,98061.0,1.30942964]
[1738714261604,8e-07,98062.0,98061.0,1.30847126]
[1738714261725,8e-07,98062.0,98061.0,1.31847126]
[1738714262074,8e-07,98063.0,98062.0,0.32249351]
[1738714262286,8e-07,98063.0,98062.0,0.42487857]
[1738714262639,8e-07,98063.0,98062.0,2.05428053]
[1738714263252,0.0001068,98094.0,98093.0,0.272332]
[1738714263452,0.00024719,98094.0,98093.0,1.22081822]
[1738714263920,0.00024719,98094.0,98093.0,1.27391173]
[1738714264223,0.00024719,98094.0,98093.0,1.29691173]
[1738714264388,0.00024719,98094.0,98093.0,1.31560409]
[1738714264599,0.00024719,98094.0,98093.0,1.23951058]
[1738714265661,0.00024719,98094.0,98093.0,1.13931822]
[1738714267120,0.00024719,98094.0,98093.0,1.19781497]
[1738714267331,0.00024719,98094.0,98093.0,1.14820519]
[1738714267515,0.00015622,98094.0,98093.0,1.14820519]
[1738714267717,0.00015622,98094.0,98093.0,1.2012987]
[1738714267932,0.00015622,98094.0,98093.0,1.21995472]
[1738714268136,0.00015622,98094.0,98093.0,1.24295472]
[1738714269383,0.00015622,98094.0,98093.0,1.19334494]
[1738714269938,0.00015622,98094.0,98093.0,1.24295472]
[1738714271155,0.00015622,98094.0,98093.0,1.27279504]
[1738714271366,0.00015622,98094.0,98093.0,1.24631131]
[1738714271585,0.00015622,98094.0,98093.0,1.19670153]
[1738714273305,0.00015622,98094.0,98093.0,0.92436953]
[1738714273674,0.00015622,98094.0,98093.0,0.87587319]
[1738714274251,0.00015622,98094.0,98093.0,1.02587319]
[1738714274887,0.00015622,98094.0,98093.0,0.5883202]
[1738714276716,0.00015622,98094.0,98093.0,0.4383202]
[1738714278059,0.00015622,98094.0,98093.0,0.33593514]
[1738714278642,0.09345791,98094.0,98093.0,0.33593514]
[1738714278826,0.04855622,98094.0,98093.0,0.33593514]
[1738714279033,0.04855622,98094.0,98093.0,0.4383202]
[1738714279233,0.04855622,98094.0,98093.0,0.33593514]
[1738714280202,0.00015622,98094.0,98093.0,0.4383202]
[1738714280801,0.12248722,98094.0,98093.0,0.33593514]
[1738714281218,0.14700081,98094.0,98093.0,0.33593514]
[1738714281368,0.00015622,98094.0,98093.0,0.33593514]
[1738714282182,0.00015622,98094.0,98093.0,0.32704817]
[1738714282601,0.00015622,98094.0,98093.0,0.33599467]
[1738714283112,0.00015622,98094.0,98093.0,0.43837973]
[1738714288447,0.00015622,98094.0,98093.0,0.4386038]
[1738714288760,0.00015622,98094.0,98093.0,0.5886038]
[1738714289556,0.00015622,98094.0,98093.0,1.02615679]
[1738714290718,0.00015622,98094.0,98093.0,1.0364692]
[1738714291160,0.00015622,98094.0,98093.0,1.05528501]
[1738714293415,0.00015622,98094.0,98093.0,0.45741961]
[1738714293587,0.00015622,98094.0,98093.0,0.35503455]
[1738714293804,0.00015622,98094.0,98093.0,0.35195237]
[1738714294208,0.00015622,98094.0,98093.0,0.0249042]
[1738714294549,0.24824128,98094.0,98093.0,0.01903988]
[1738714294706,0.24824128,98094.0,98093.0,0.00022407]
[1738714295110,0.15457989,98094.0,98093.0,0.00022407]
[1738714295310,0.18408388,98094.0,98093.0,0.00022407]
[1738714295513,0.34118234,98094.0,98093.0,0.00022407]
[1738714296546,0.30946894,98094.0,98093.0,0.00022407]
[1738714297086,0.34116719,98094.0,98093.0,0.00022407]
[1738714297508,0.30946894,98094.0,98093.0,0.00022407]
[1738714297714,0.50115338,98094.0,98093.0,0.00022407]
[1738714298708,0.43992572,98094.0,98093.0,0.00022407]
[1738714299012,0.44591103,98094.0,98093.0,0.00022407]
[1738714299415,0.41324128,98094.0,98093.0,0.00022407]
[1738714299588,0.41524128,98094.0,98093.0,0.00022407]
[1738714300634,0.42551797,98094.0,98093.0,7e-08]
[1738714300779,0.5464907,98094.0,98093.0,7e-08]
[1738714300981,0.198161,98070.0,98069.0,0.08187536]
[1738714301211,0.247761,98070.0,98069.0,0.08187536]
[1738714301361,0.270761,98070.0,98069.0,0.00610391]
[1738714301572,0.14537,98063.0,98062.0,0.00022428]
[1738714301832,0.31870167,98063.0,98062.0,0.00022428]
[1738714302361,0.31870167,98063.0,98013.0,0.32704817]
[1738714302362,0.01,98055.0,98013.0,0.32704817]
[1738714302565,0.247805,98035.0,98010.0,0.17137643]
[1738714302774,0.247805,98035.0,98034.0,0.00028154]
[1738714303669,0.01,98045.0,98034.0,0.00028154]
[1738714303670,0.212775,98054.0,98040.0,0.122398]
[1738714303891,0.212775,98054.0,98044.0,0.17137643]
[1738714303892,0.163177,98053.0,98044.0,0.17137643]
[1738714304082,0.0496,98054.0,98044.0,0.17137643]
[1738714304300,0.0496,98054.0,98034.0,0.00028154]
[1738714304492,0.122405,98035.0,98034.0,0.00028154]
[1738714304727,0.122404,98036.0,98034.0,0.00028154]
[1738714305452,0.122404,98036.0,98034.0,0.00128154]
[1738714305872,0.122404,98036.0,98034.0,0.00228154]
[1738714306268,0.122404,98036.0,98034.0,0.00128154]
[1738714306573,0.122404,98036.0,98034.0,0.00228154]
[1738714306774,0.122404,98036.0,98034.0,0.00128154]
[1738714306992,0.122396,98042.0,98034.0,0.12268754]
[1738714307214,0.09116084,98052.0,98034.0,0.00028154]
[1738714307411,0.122398,98041.0,98034.0,0.00228154]
[1738714307819,0.023,98050.0,98034.0,0.00128154]
[1738714308193,0.023,98050.0,98034.0,0.00228154]
[1738714308412,0.122405,98035.0,98034.0,0.00228154]
[1738714308614,0.122405,98035.0,98034.0,0.00028154]
[1738714309018,0.122405,98035.0,98034.0,0.00228154]
[1738714309224,0.122405,98035.0,98034.0,0.00128154]
[1738714309741,0.1672854,98035.0,98034.0,0.00228154]
[1738714309944,0.122405,98035.0,98034.0,0.00128154]
[1738714310175,0.122405,98035.0,98034.0,0.00228154]
[1738714310353,0.163204,98037.0,98034.0,0.00128154]
[1738714310635,0.122405,98036.0,98034.0,0.00228154]
[1738714311165,0.122405,98036.0,98034.0,0.00128154]
[1738714311543,0.122405,98036.0,98034.0,0.00228154]
[1738714312090,0.122405,98036.0,98034.0,0.00028154]
[1738714312289,0.122405,98036.0,98034.0,0.00128154]
[1738714312512,0.0448808,98035.0,98034.0,0.00128154]
[1738714313090,0.1060908,98035.0,98034.0,0.00228154]
[1738714313291,0.0448808,98035.0,98034.0,0.00128154]
[1738714313948,0.122405,98036.0,98034.0,0.00228154]
[1738714314131,0.0235785,98048.0,98034.0,0.00228154]
[1738714314351,0.122401,98038.0,98034.0,0.00228154]
[1738714314546,0.163197,98041.0,98034.0,0.00128154]
[1738714314795,0.163187,98047.0,98035.0,0.00629689]
[1738714314925,0.02586297,98046.0,98035.0,0.00629689]
[1738714315130,0.0235785,98048.0,98035.0,0.00629689]
[1738714315534,0.122403,98037.0,98035.0,0.00629689]
[1738714315762,0.122405,98035.0,98034.0,0.00228154]
[1738714315960,0.183615,98035.0,98034.0,0.00228154]
[1738714316161,0.2142168,98035.0,98034.0,0.00228154]
[1738714316396,0.2142168,98035.0,98034.0,0.00128154]
[1738714316842,0.2142168,98035.0,98034.0,0.00028154]
[1738714317278,0.35850761,98035.0,98034.0,0.00028154]
[1738714317954,0.35850761,98035.0,98034.0,0.00128154]
[1738714319025,0.35850761,98035.0,98034.0,0.00228154]
[1738714319209,0.35850761,98035.0,98034.0,0.00128154]
[1738714319577,0.35850761,98035.0,98034.0,0.00228154]
[1738714319797,0.35850761,98035.0,98034.0,0.00128154]
[1738714320006,0.14131075,98035.0,98034.0,0.00128154]
[1738714320207,0.14131075,98035.0,98034.0,0.00228154]
[1738714320454,0.14131075,98035.0,98034.0,0.00128154]
[1738714321213,0.14131075,98035.0,98034.0,0.00228154]
[1738714321214,0.122405,98035.0,98034.0,0.00228154]
[1738714321355,0.122405,98035.0,98034.0,0.00128154]
[1738714321772,0.122405,98035.0,98034.0,0.00228154]
[1738714321987,0.0796,98043.0,98034.0,0.00228154]
[1738714322358,0.122404,98036.0,98034.0,0.00228154]
[1738714322537,0.122404,98036.0,98034.0,0.00128154]
[1738714322899,0.122404,98036.0,98034.0,0.00228154]
[1738714323321,0.09116084,98049.0,98034.0,0.00028154]
[1738714323519,0.09116084,98049.0,98039.0,0.22880352]
[1738714323727,0.09116084,98049.0,98047.0,0.122389]
[1738714323945,0.09116084,98049.0,98048.0,0.10238506]
[1738714324151,0.09116084,98049.0,98048.0,0.87335858]
[1738714325268,0.0001068,98062.0,98048.0,0.87335858]
[1738714325447,0.0001068,98062.0,98052.0,0.11440176]
[1738714325650,0.122377,98058.0,98053.0,0.10238506]
[1738714325858,0.0001068,98062.0,98053.0,0.00617082]
[1738714326061,0.0001068,98062.0,98057.0,0.122376]
[1738714326283,0.0001068,98062.0,98055.0,0.12238]
[1738714326693,0.0001068,98062.0,98056.0,0.12854861]
[1738714327354,0.0001068,98062.0,98057.0,0.001]
[1738714327744,0.0001068,98062.0,98058.0,0.00617016]
[1738714327908,0.0001068,98062.0,98060.0,0.122373]
[1738714328110,0.0001068,98062.0,98061.0,0.10238506]
[1738714328316,0.0001068,98062.0,98061.0,0.17890865]
[1738714328634,0.0001068,98062.0,98061.0,1.09966908]
[1738714328851,0.0001068,98062.0,98061.0,1.09844549]
[1738714329609,0.0001068,98062.0,98061.0,1.09944549]
[1738714330067,0.0001068,98062.0,98061.0,1.09844549]
[1738714330222,0.0001068,98062.0,98061.0,1.09944549]
[1738714331854,0.0001068,98062.0,98061.0,1.11821794]
[1738714332259,0.0001068,98062.0,98061.0,0.96821794]
[1738714332457,0.0001068,98062.0,98061.0,0.89291794]
[1738714333013,0.0001068,98062.0,98061.0,0.87314549]
[1738714333396,0.0001068,98062.0,98061.0,0.87414549]
[1738714333740,0.0001068,98062.0,98061.0,0.87314549]
[1738714334022,0.0001068,98062.0,98061.0,0.4365925]
[1738714334545,0.0001068,98062.0,98061.0,0.00715927]
[1738714335422,0.0001068,98062.0,98061.0,0.00615927]
[1738714335617,0.0001068,98062.0,98061.0,0.00715927]
[1738714335957,0.0001068,98062.0,98061.0,0.00608163]
[1738714336166,0.0001068,98062.0,98061.0,0.00708163]
[1738714336312,0.0001068,98062.0,98061.0,0.001]
[1738714336516,0.0001068,98062.0,98061.0,0.00708163]
[1738714337339,0.0001068,98062.0,98061.0,0.12945363]
[1738714337860,0.0001068,98062.0,98061.0,0.00708163]
[1738714340982,0.0001068,98062.0,98061.0,0.001]
[1738714341164,0.0001068,98062.0,98061.0,0.00710115]
[1738714341359,0.0001068,98062.0,98061.0,0.001]
[1738714341567,0.0001068,98062.0,98061.0,0.00710115]
[1738714341860,0.0001068,98062.0,98061.0,0.001]
[1738714341977,0.0001068,98062.0,98061.0,0.00710115]
[1738714342182,0.0001068,98062.0,98061.0,0.001]
[1738714342439,0.0001068,98062.0,98061.0,0.00710115]
[1738714342690,0.0001068,98062.0,98061.0,0.001]
[1738714342911,0.0001068,98062.0,98061.0,0.00710115]
[1738714343387,0.01235448,98062.0,98061.0,0.001]
[1738714344051,0.07356448,98062.0,98047.0,0.76460116]
[1738714344226,0.07356448,98062.0,98040.0,0.29370208]
[1738714344227,0.122384,98052.0,98040.0,0.17130408]
[1738714344434,0.122387,98050.0,98048.0,0.00610256]
[1738714344648,0.122389,98048.0,98035.0,0.32704817]
[1738714344823,0.163173,98056.0,98040.0,0.17130408]
[1738714345028,0.122387,98050.0,98040.0,0.17130408]
[1738714345231,0.06121,98057.0,98040.0,0.17130408]
[1738714345483,0.0001068,98062.0,98060.0,0.122373]
[1738714345861,0.0001068,98062.0,98061.0,0.00122428]
[1738714346019,0.0001068,98062.0,98061.0,0.00744402]
[1738714346217,0.0001068,98062.0,98061.0,0.00022428]
[1738714346419,0.0001068,98062.0,98061.0,0.00644402]
[1738714346647,0.0001068,98062.0,98061.0,0.00022428]
[1738714346822,0.0001068,98062.0,98061.0,0.00644402]
[1738714347365,0.0001068,98062.0,98061.0,0.00744402]
[1738714347520,0.0001068,98062.0,98061.0,0.00644402]
[1738714348143,0.0613168,98062.0,98061.0,0.00644402]
[1738714348968,0.0613168,98062.0,98061.0,0.00122428]
[1738714349193,0.0001068,98062.0,98061.0,0.00022428]
[1738714349379,0.0001068,98062.0,98061.0,0.00642337]
[1738714349536,0.0001068,98062.0,98061.0,0.00122428]
[1738714349965,0.0613168,98062.0,98061.0,0.00122428]
[1738714350172,0.0613168,98062.0,98061.0,0.00222428]
[1738714350380,0.0613168,98062.0,98061.0,0.00122428]
[1738714350586,0.11231688,98062.0,98061.0,0.00022428]
[1738714350982,0.11231688,98062.0,98061.0,0.00122428]
[1738714351545,0.13531688,98062.0,98061.0,0.00122428]
[1738714352161,0.23770194,98062.0,98061.0,0.00022428]
[1738714352330,0.23770194,98062.0,98061.0,0.00122428]
[1738714352544,0.38770194,98062.0,98061.0,0.00122428]
[1738714352734,0.44360194,98062.0,98061.0,0.00022428]
[1738714353139,0.38239194,98062.0,98061.0,0.00122428]
[1738714353508,0.41406498,98062.0,98061.0,0.00122428]
[1738714353763,0.41937575,98062.0,98061.0,0.00022428]
[1738714354118,0.42937575,98062.0,98061.0,0.00122428]
[1738714354900,0.43805575,98062.0,98061.0,0.00122428]
[1738714355108,0.40638271,98062.0,98061.0,0.00122428]
[1738714355241,0.40838271,98062.0,98061.0,0.00122428]
[1738714355456,0.122405,98035.0,98001.0,0.122446]
[1738714355700,0.37519006,98035.0,98001.0,0.122446]
[1738714355899,0.37519006,98035.0,98000.0,0.0779]
[1738714355900,0.37519006,98035.0,98000.0,0.11434515]
[1738714356099,0.38519006,98035.0,98000.0,0.11434515]
[1738714356407,0.56687459,98035.0,97998.0,0.00022449]
[1738714356583,0.53519006,98035.0,98000.0,0.11434515]
[1738714356781,0.53519006,98035.0,97998.0,0.00022449]
[1738714356782,0.62234917,98035.0,97998.0,0.00022449]
[1738714356962,0.65401824,98035.0,98034.0,0.00128154]
[1738714357169,0.65401824,98035.0,98034.0,0.00028154]
[1738714357368,0.66431064,98035.0,98034.0,0.00028154]
[1738714357574,0.67431064,98035.0,98034.0,0.00028154]
[1738714358309,0.64264157,98035.0,98034.0,0.00028154]
[1738714358541,0.64464157,98035.0,98034.0,0.00228154]
[1738714358906,0.64464157,98035.0,98034.0,0.00028154]
[1738714359302,0.65164157,98035.0,98034.0,5.4e-07]
[1738714359506,0.305432,98013.0,97998.0,0.00022449]
[1738714359714,0.60758776,98013.0,97998.0,0.00022449]
[1738714360094,0.12245,97999.0,97998.0,0.00022449]
[1738714360300,0.24783506,97999.0,97998.0,0.00022449]
[1738714360560,0.39783506,97999.0,97998.0,0.00022449]
[1738714360729,0.0809,97989.0,97975.0,0.08187536]
[1738714360934,0.122478,97976.0,97975.0,0.08187536]
[1738714361299,0.122483,97973.0,97963.0,0.00022428]
[1738714361501,4.671e-05,97976.0,97963.0,0.00022428]
[1738714361705,4.671e-05,97976.0,97967.0,0.12249]
[1738714361906,4.671e-05,97976.0,97963.0,0.00022428]
[1738714362306,0.122483,97973.0,97971.0,0.00222428]
[1738714362695,0.122483,97973.0,97971.0,0.00022428]
[1738714362880,0.122483,97973.0,97971.0,0.00122428]
[1738714363070,0.122483,97973.0,97971.0,0.00322428]
[1738714363286,0.122483,97973.0,97971.0,0.00022428]
[1738714363636,0.16739657,97973.0,97971.0,0.00122428]
[1738714364231,0.122483,97973.0,97971.0,0.00122428]
[1738714364780,0.122483,97973.0,97971.0,0.00322428]
[1738714365290,4.671e-05,97976.0,97971.0,0.00022428]
[1738714365427,4.671e-05,97976.0,97974.0,0.12248]
[1738714365645,4.671e-05,97976.0,97975.0,0.18288506]
[1738714366233,4.671e-05,97976.0,97975.0,0.30536506]
[1738714366447,4.671e-05,97976.0,97975.0,0.63241323]
[1738714368060,4.671e-05,97976.0,97975.0,0.63341323]
[1738714368249,4.671e-05,97976.0,97975.0,0.41054817]
[1738714368441,4.671e-05,97976.0,97975.0,0.32804817]
[1738714368643,4.671e-05,97976.0,97975.0,0.32704817]
[1738714368802,4.671e-05,97976.0,97975.0,0.33004817]
[1738714369205,4.671e-05,97976.0,97975.0,0.32804817]
[1738714369420,4.671e-05,97976.0,97975.0,0.45152817]
[1738714369904,4.671e-05,97976.0,97975.0,0.45052817]
[1738714370110,4.671e-05,97976.0,97975.0,0.55291323]
[1738714370329,4.671e-05,97976.0,97975.0,0.70291323]
[1738714371079,4.671e-05,97976.0,97975.0,0.70391323]
[1738714371278,4.671e-05,97976.0,97975.0,0.70291323]
[1738714371487,4.671e-05,97976.0,97975.0,0.70391323]
[1738714371856,4.671e-05,97976.0,97975.0,0.70291323]
[1738714372058,4.671e-05,97976.0,97975.0,0.70740424]
[1738714372425,4.671e-05,97976.0,97975.0,0.70940424]
[1738714372621,4.671e-05,97976.0,97975.0,0.70840424]
[1738714373032,4.671e-05,97976.0,97975.0,0.70940424]
[1738714374009,4.671e-05,97976.0,97975.0,0.70740424]
[1738714374391,4.671e-05,97976.0,97975.0,0.78250424]
[1738714374596,4.671e-05,97976.0,97975.0,0.82880424]
[1738714374789,4.671e-05,97976.0,97975.0,1.26535723]
[1738714375005,4.671e-05,97976.0,97975.0,1.26635723]
[1738714375177,4.671e-05,97976.0,97975.0,1.26735723]
[1738714375378,4.671e-05,97976.0,97975.0,1.26535723]
[1738714375784,4.671e-05,97976.0,97975.0,1.26735723]
[1738714376565,4.671e-05,97976.0,97975.0,1.26635723]
[1738714377146,4.671e-05,97976.0,97975.0,1.26535723]
[1738714377725,4.671e-05,97976.0,97975.0,1.26635723]
[1738714380658,0.0001069,97994.0,97977.0,0.033]
[1738714380867,0.0001069,97994.0,97993.0,0.45674206]
[1738714381069,9e-07,97994.0,97993.0,1.26934322]
[1738714381307,9e-07,97994.0,97993.0,1.27472428]
[1738714381513,9e-07,97994.0,97993.0,1.30772428]
[1738714382121,9e-07,97994.0,97993.0,1.31772428]
[1738714382874,9e-07,97994.0,97993.0,1.31872428]
[1738714383160,9e-07,97994.0,97993.0,1.31772428]
[1738714383469,9e-07,97994.0,97993.0,1.30772428]
[1738714383667,9e-07,97994.0,97993.0,1.29772428]
[1738714383813,9e-07,97994.0,97993.0,1.27472428]
[1738714384603,9e-07,97994.0,97993.0,1.22672428]
[1738714384734,9e-07,97994.0,97993.0,1.23685507]
[1738714384942,9e-07,97994.0,97993.0,1.23785507]
[1738714385167,9e-07,97994.0,97993.0,1.23685507]
[1738714385564,9e-07,97994.0,97993.0,1.23785507]
[1738714385770,9e-07,97994.0,97993.0,1.23685507]
[1738714386148,9e-07,97994.0,97993.0,1.23785507]
[1738714386731,9e-07,97994.0,97993.0,1.23685507]
[1738714386988,9e-07,97994.0,97993.0,1.23785507]
[1738714388114,9e-07,97994.0,97993.0,1.23685507]
[1738714388521,9e-07,97994.0,97993.0,1.23785507]
[1738714389096,9e-07,97994.0,97993.0,1.23685507]
[1738714389597,9e-07,97994.0,97993.0,1.23785507]
[1738714389924,9e-07,97994.0,97993.0,1.23685507]
[1738714390040,9e-07,97994.0,97993.0,1.23785507]
[1738714391332,9e-07,97994.0,97993.0,1.23685507]
[1738714391696,9e-07,97994.0,97993.0,1.23785507]
[1738714392948,9e-07,97994.0,97993.0,1.00595507]
[1738714393299,9e-07,97994.0,97993.0,1.14582428]
[1738714394323,9e-07,97994.0,97993.0,1.14482428]
[1738714394508,9e-07,97994.0,97993.0,1.14582428]
[1738714394929,9e-07,97994.0,97993.0,0.99482428]
[1738714395136,9e-07,97994.0,97993.0,0.43581429]
[1738714395930,9e-07,97994.0,97993.0,0.43481429]
[1738714396334,9e-07,97994.0,97993.0,0.43581429]
[1738714397483,9e-07,97994.0,97993.0,0.43481429]
[1738714397864,9e-07,97994.0,97993.0,0.43581429]
[1738714398284,9e-07,97994.0,97993.0,0.33342923]
[1738714399133,0.01903004,97994.0,97993.0,0.33342923]
[1738714399547,0.01903004,97994.0,97993.0,0.45588623]
[1738714400740,0.01903004,97994.0,97993.0,0.33342923]
[1738714405007,0.01903004,97994.0,97993.0,0.33365372]
[1738714405206,9e-07,97994.0,97993.0,0.33365372]
[1738714407964,0.01904382,97994.0,97993.0,0.33365372]
[1738714408183,0.08028382,97994.0,97993.0,0.33365372]
[1738714408969,0.0612409,97994.0,97993.0,0.33365372]
[1738714409145,9e-07,97994.0,97993.0,0.33365372]
[1738714409778,0.0612409,97994.0,97993.0,0.33365372]
[1738714409971,0.09593749,97994.0,97993.0,0.33365372]
[1738714410240,0.14473749,97994.0,97993.0,0.00660555]
[1738714410585,0.14473749,97994.0,97993.0,0.00122449]
[1738714410770,0.22013749,97994.0,97993.0,0.00122449]
[1738714410966,0.22013749,97994.0,97971.0,0.00022428]
[1738714410967,0.343718,97976.0,97975.0,6e-07]